fUSD/lending_fUSD_20240602
["ID","MTS","AMOUNT","RATE_DAILY","PERIOD"]
[328416712,1717371048528,-500.0,0.00031132,4]
[328416713,1717371048538,-514.05854559,0.00031132,4]
[328416714,1717371048549,-592.45,0.00031132,4]
[328416715,1717371048558,-518.54921883,0.00031132,4]
[328416716,1717371048567,-500.0,0.00031132,4]
[328416717,1717371048577,-500.0,0.00031132,4]
[328416718,1717371048588,-508.85196554,0.00031132,4]
[328416719,1717371048598,-500.0,0.00031132,4]
[328416720,1717371048608,-500.0,0.00031132,4]
[328416721,1717371048617,-500.0,0.00031132,4]
[328416722,1717371048626,-500.0,0.00031132,4]
[328416723,1717371048637,-500.0,0.00031132,4]
[328416724,1717371048647,-508.4839775,0.00031132,4]
[328416725,1717371048656,-500.0,0.00031132,4]
[328416726,1717371048668,-707.92,0.00031132,4]
[328416727,1717371048678,-500.0,0.00031132,4]
[328416728,1717371048687,-500.0,0.00031132,4]
[328416729,1717371048696,-500.0,0.00031132,4]
[328416730,1717371048705,-500.0,0.00031132,4]
[328416731,1717371048714,-380.30432328,0.00031132,4]
[328416732,1717371048723,-500.0,0.00031132,4]
[328416733,1717371048732,-539.22214166,0.00031132,4]
[328416734,1717371048742,-500.0,0.00031132,4]
[328416735,1717371048751,-605.96,0.00031132,4]
[328416736,1717371048760,-505.75187002,0.00031132,4]
[328416737,1717371048770,-512.7723901,0.00031132,4]
[328416738,1717371048779,-502.46849509,0.00031132,4]
[328416739,1717371048789,-156.092289,0.00031132,7]
[328416740,1717371048798,-500.0,0.00031132,4]
[328416741,1717371048808,-500.0,0.00031132,4]
[328416742,1717371048817,-539.36,0.00031132,4]
[328416743,1717371048827,-500.0,0.00031132,4]
[328416744,1717371048836,-500.0,0.00031132,4]
[328416745,1717371048845,-500.0,0.00031132,4]
[328416746,1717371048855,-500.0,0.00031132,4]
[328416747,1717371048864,-500.0,0.00031132,4]
[328416748,1717371048873,-500.0,0.00031132,4]
[328416749,1717371048883,-500.0,0.00031132,4]
[328416750,1717371048893,-187.3169187,0.00031132,4]
[328416751,1717371048902,-334.800936,0.00031132,7]
[328416752,1717371048912,-500.0,0.00031132,4]
[328416753,1717371048921,-500.0,0.00031132,4]
[328416754,1717371048930,-500.0,0.00031132,4]
[328416755,1717371048939,-334.800936,0.00031132,7]
[328416756,1717371048948,-521.77628435,0.00031132,4]
[328416757,1717371048957,-500.0,0.00031132,4]
[328416758,1717371048967,-500.0,0.00031132,4]
[328416759,1717371048976,-500.0,0.00031132,4]
[328416760,1717371048986,-500.0,0.00031132,4]
[328416761,1717371048995,-500.0,0.00031132,4]
[328416762,1717371049005,-500.0,0.00031132,4]
[328416763,1717371049014,-500.0,0.00031132,4]
[328416764,1717371049024,-500.0,0.00031132,4]
[328416765,1717371049033,-500.0,0.00031132,4]
[328416766,1717371049043,-510.06527974,0.00031132,4]
[328416767,1717371049052,-500.0,0.00031132,4]
[328416768,1717371049061,-506.53165375,0.00031132,4]
[328416769,1717371049070,-502.03123373,0.00031132,4]
[328416770,1717371049080,-500.0,0.00031132,4]
[328416771,1717371049089,-500.0,0.00031132,4]
[328416772,1717371049098,-500.0,0.00031132,4]
[328416773,1717371049108,-151.0,0.00031132,7]
[328416774,1717371049117,-503.77743693,0.00031132,4]
[328416775,1717371049127,-500.0,0.00031132,2]
[328416776,1717371049137,-500.0,0.00031132,4]
[328416777,1717371049147,-151.0,0.00031132,7]
[328416778,1717371049156,-500.0,0.00031132,4]
[328416779,1717371049166,-503.77538108,0.00031132,4]
[328416780,1717371049175,-500.0,0.00031132,4]
[328416781,1717371049184,-542.79960372,0.00031132,4]
[328416782,1717371049194,-500.0,0.00031132,4]
[328416783,1717371049204,-500.0,0.00031132,4]
[328416784,1717371049214,-223.352464,0.00031132,7]
[328416785,1717371049223,-500.0,0.00031132,4]
[328416786,1717371049233,-527.99308386,0.00031132,4]
[328416787,1717371049242,-540.58492546,0.00031132,4]
[328416788,1717371049252,-512.35627417,0.00031132,4]
[328416789,1717371049261,-223.352464,0.00031132,7]
[328416790,1717371049271,-500.0,0.00031132,4]
[328416791,1717371049282,-510.27253496,0.00031132,4]
[328416792,1717371049293,-500.0,0.00031132,4]
[328416793,1717371049302,-500.0,0.00031132,4]
[328416794,1717371049311,-500.0,0.00031132,4]
[328416795,1717371049321,-500.0,0.00031132,4]
[328416796,1717371049330,-540.30008499,0.00031132,4]
[328416797,1717371049340,-500.0,0.00031132,4]
[328416798,1717371049350,-500.0,0.00031132,4]
[328416799,1717371049359,-489.57211272,0.00031132,4]
[328416800,1717371049369,-151.0,0.00031132,7]
[328416801,1717371049379,-500.0,0.00031132,4]
[328416802,1717371049388,-500.0,0.00031132,4]
[328416803,1717371049397,-500.0,0.00031132,4]
[328416804,1717371049407,-500.0,0.00031132,4]
[328416805,1717371049417,-500.0,0.00031132,4]
[328416806,1717371049427,-500.0,0.00031132,4]
[328416807,1717371049436,-500.0,0.00031132,4]
[328416808,1717371049445,-500.0,0.00031132,4]
[328416809,1717371049455,-500.0,0.00031132,4]
[328416810,1717371049464,-500.0,0.00031132,4]
[328416811,1717371049474,-520.54426059,0.00031132,4]
[328416812,1717371049484,-500.0,0.00031132,4]
[328416813,1717371049495,-500.0,0.00031132,4]
[328416814,1717371049505,-500.0,0.00031132,4]
[328416815,1717371049515,-500.0,0.00031132,4]
[328416816,1717371049524,-507.875795,0.00031132,7]
[328416817,1717371049534,-518.98503406,0.00031132,4]
[328416818,1717371049544,-500.0,0.00031132,4]
[328416819,1717371049554,-507.875795,0.00031132,7]
[328416820,1717371049563,-509.87649341,0.00031132,4]
[328416821,1717371049573,-500.0,0.00031132,4]
[328416822,1717371049582,-534.23758426,0.00031132,4]
[328416823,1717371049596,-500.0,0.00031132,4]
[328416824,1717371049605,-500.0,0.00031132,4]
[328416825,1717371049614,-500.0,0.00031132,4]
[328416826,1717371049623,-500.0,0.00031132,4]
[328416827,1717371049633,-522.93978213,0.00031132,4]
[328416828,1717371049642,-500.0,0.00031132,4]
[328416829,1717371049651,-500.0,0.00031132,4]
[328416830,1717371049660,-570.92082705,0.00031132,4]
[328416831,1717371049671,-551.86343737,0.00031132,4]
[328416832,1717371049681,-151.0,0.00031132,7]
[328416833,1717371049689,-520.29337693,0.00031132,4]
[328416834,1717371049698,-369.754307,0.00031132,7]
[328416835,1717371049708,-151.0,0.00031132,7]
[328416836,1717371049717,-369.754307,0.00031132,7]
[328416837,1717371049726,-353.33951047,0.00031132,4]
[328416838,1717371049735,-151.0,0.00031132,7]
[328416839,1717371049744,-506.90384753,0.00031132,4]
[328416840,1717371049753,-151.0,0.00031132,7]
[328416841,1717371049763,-500.0,0.00031132,4]
[328416842,1717371049772,-569.9,0.00031132,4]
[328416843,1717371049782,-500.0,0.00031132,4]
[328416844,1717371049791,-189.236033,0.00031132,7]
[328416845,1717371049800,-500.0,0.00031132,4]
[328416846,1717371049809,-500.0,0.00031132,4]
[328416847,1717371049818,-500.0,0.00031132,4]
[328416848,1717371049827,-315.36029351,0.00031132,4]
[328416849,1717371049836,-500.0,0.00031132,4]
[328416850,1717371049845,-500.0,0.00031132,4]
[328416851,1717371049855,-500.0,0.00031132,4]
[328416852,1717371049864,-500.0,0.00031132,4]
[328416853,1717371049873,-500.0,0.00031132,4]
[328416854,1717371049882,-500.0,0.00031132,4]
[328416855,1717371049892,-500.0,0.00031132,4]
[328416856,1717371049901,-514.10220203,0.00031132,4]
[328416857,1717371049911,-526.36182346,0.00031132,4]
[328416858,1717371049921,-500.0,0.00031132,4]
[328416859,1717371049930,-500.0,0.00031132,4]
[328416860,1717371049940,-500.0,0.00031132,4]
[328416861,1717371049949,-151.0,0.00031132,7]
[328416862,1717371049959,-500.0,0.00031132,4]
[328416863,1717371049968,-500.0,0.00031132,4]
[328416864,1717371049977,-151.0,0.00031132,7]
[328416865,1717371049986,-500.0,0.00031132,4]
[328416866,1717371049996,-151.0,0.00031132,7]
[328416867,1717371050006,-500.0,0.00031132,4]
[328416868,1717371050015,-500.0,0.00031132,4]
[328416869,1717371050024,-500.0,0.00031132,4]
[328416870,1717371050033,-500.0,0.00031132,4]
[328416871,1717371050043,-500.0,0.00031132,4]
[328416872,1717371050052,-500.0,0.00031132,4]
[328416873,1717371050062,-500.0,0.00031132,4]
[328416874,1717371050071,-504.93192471,0.00031132,4]
[328416875,1717371050081,-500.0,0.00031132,4]
[328416876,1717371050090,-500.0,0.00031132,4]
[328416877,1717371050099,-615.5930166,0.00031132,4]
[328416878,1717371050108,-500.0,0.00031132,4]
[328416879,1717371050118,-500.0,0.00031132,4]
[328416880,1717371050127,-500.0,0.00031132,4]
[328416881,1717371050138,-500.0,0.00031132,4]
[328416882,1717371050147,-1044.317613,0.00031132,7]
[328416883,1717371050157,-500.0,0.00031132,4]
[328416884,1717371050166,-1044.317613,0.00031132,7]
[328416885,1717371050175,-500.0,0.00031132,4]
[328416886,1717371050185,-500.0,0.00031132,4]
[328416887,1717371050194,-500.0,0.00031132,4]
[328416888,1717371050204,-500.0,0.00031132,4]
[328416889,1717371050213,-514.74215018,0.00031132,4]
[328416890,1717371050222,-500.0,0.00031132,4]
[328416891,1717371050231,-500.0,0.00031132,4]
[328416892,1717371050241,-515.89515624,0.00031132,4]
[328416893,1717371050251,-500.0,0.00031132,4]
[328416894,1717371050260,-500.0,0.00031132,4]
[328416895,1717371050269,-539.61596458,0.00031132,4]
[328416896,1717371050278,-500.0,0.00031132,4]
[328416897,1717371050287,-151.0,0.00031132,7]
[328416898,1717371050296,-507.16644456,0.00031132,4]
[328416899,1717371050307,-151.0,0.00031132,7]
[328416900,1717371050317,-500.0,0.00031132,4]
[328416901,1717371050327,-389.242611,0.00031132,7]
[328416902,1717371050336,-500.0,0.00031132,4]
[328416903,1717371050349,-389.242611,0.00031132,7]
[328416904,1717371050358,-500.0,0.00031132,4]
[328416905,1717371050367,-500.0,0.00031132,4]
[328416906,1717371050376,-389.242611,0.00031132,7]
[328416907,1717371050387,-389.242611,0.00031132,7]
[328416908,1717371050396,-500.0,0.00031132,4]
[328416909,1717371050405,-527.58420884,0.00031132,4]
[328416910,1717371050414,-646.92592026,0.00031132,4]
[328416911,1717371050424,-513.66046896,0.00031132,4]
[328416912,1717371050433,-500.0,0.00031132,4]
[328416913,1717371050442,-531.43935733,0.00031132,4]
[328416914,1717371050451,-500.0,0.00031132,4]
[328416915,1717371050461,-500.0,0.00031132,4]
[328416916,1717371050470,-500.0,0.00031132,4]
[328416917,1717371050480,-530.00889013,0.00031132,4]
[328416918,1717371050489,-500.0,0.00031132,4]
[328416919,1717371050498,-520.49865971,0.00031132,4]
[328416920,1717371050508,-151.0,0.00031132,7]
[328416921,1717371050517,-161.192506,0.00031132,7]
[328416922,1717371050527,-509.47760119,0.00031132,4]
[328416923,1717371050536,-500.0,0.00031132,4]
[328416924,1717371050545,-500.0,0.00031132,4]
[328416925,1717371050555,-8095.33,0.00031132,4]
[328416926,1717371050565,-413.159818,0.00031132,7]
[328416927,1717371050574,-413.159818,0.00031132,7]
[328416928,1717371050584,-500.0,0.00031132,4]
[328416929,1717371050598,-507.6275622,0.00031132,4]
[328416930,1717371050608,-500.0,0.00031132,4]
[328416931,1717371050619,-500.0,0.00031132,4]
[328416932,1717371050631,-413.159818,0.00031132,7]
[328416933,1717371050640,-413.159818,0.00031132,7]
[328416934,1717371050650,-500.0,0.00031132,4]
[328416935,1717371050660,-500.0,0.00031132,4]
[328416936,1717371050671,-500.0,0.00031132,4]
[328416937,1717371050680,-1817.32,0.00031132,4]
[328416938,1717371050690,-500.0,0.00031132,4]
[328416939,1717371050699,-500.0,0.00031132,4]
[328416940,1717371050708,-500.0,0.00031132,4]
[328416941,1717371050717,-500.0,0.00031132,4]
[328416942,1717371050726,-1662.32,0.00031132,4]
[328416943,1717371050736,-2228.05,0.00031132,4]
[328416944,1717371050747,-500.0,0.00031132,4]
[328416945,1717371050882,-500.0,0.00031132,4]
[328416946,1717371050894,-500.0,0.00031132,4]
[328416947,1717371050904,-500.0,0.00031132,4]
[328416948,1717371050913,-500.0,0.00031132,4]
[328416949,1717371050922,-500.0,0.00031132,4]
[328416950,1717371050931,-500.0,0.00031132,4]
[328416951,1717371050940,-446.81041262,0.00031132,4]
[328416952,1717371050949,-500.0,0.00031132,4]
[328416953,1717371050958,-500.0,0.00031132,4]
[328416954,1717371050967,-500.0,0.00031132,4]
[328416955,1717371050976,-151.0,0.00031132,7]
[328416956,1717371050985,-555.54,0.00031132,4]
[328416957,1717371050995,-500.0,0.00031132,4]
[328416958,1717371051004,-500.0,0.00031132,4]
[328416959,1717371051013,-2477.72,0.00031132,4]
[328416960,1717371051022,-500.0,0.00031132,4]
[328416961,1717371051032,-500.0,0.00031132,4]
[328416962,1717371051041,-500.0,0.00031132,4]
[328416963,1717371051049,-151.0,0.00031132,7]
[328416964,1717371051059,-151.0,0.00031132,7]
[328416965,1717371051068,-500.0,0.00031132,4]
[328416966,1717371051078,-10414.42,0.00031132,4]
[328416967,1717371051087,-151.0,0.00031132,7]
[328416968,1717371051097,-1251.87,0.00031132,4]
[328416969,1717371051107,-499.05999199,0.00031132,4]
[328416970,1717371051116,-307.794907,0.00031132,7]
[328416971,1717371051126,-500.0,0.00031132,4]
[328416972,1717371051136,-500.0,0.00031132,4]
[328416973,1717371051145,-500.0,0.00031132,4]
[328416974,1717371051155,-307.794907,0.00031132,7]
[328416975,1717371051164,-500.0,0.00031132,4]
[328416976,1717371051173,-500.0,0.00031132,4]
[328416977,1717371051182,-500.0,0.00031132,4]
[328416978,1717371051191,-1307.86,0.00031132,4]
[328416979,1717371051200,-505.0,0.00031132,4]
[328416980,1717371051209,-500.0,0.00031132,4]
[328416981,1717371051219,-500.0,0.00031132,4]
[328416982,1717371051228,-653.28,0.00031132,4]
[328416983,1717371051237,-500.0,0.00031132,4]
[328416984,1717371051247,-221.380324,0.00031132,7]
[328416985,1717371051256,-221.380324,0.00031132,7]
[328416986,1717371051265,-500.0,0.00031132,4]
[328416987,1717371051274,-500.0,0.00031132,4]
[328416988,1717371051283,-500.0,0.00031132,4]
[328416989,1717371051293,-500.0,0.00031132,4]
[328416990,1717371051302,-224.825312,0.00031132,7]
[328416991,1717371051312,-500.0,0.00031132,4]
[328416992,1717371051321,-500.0,0.00031132,4]
[328416993,1717371051330,-500.0,0.00031132,4]
[328416994,1717371051340,-1861.34,0.00031132,4]
[328416995,1717371051351,-500.0,0.00031132,4]
[328416996,1717371051361,-152.531254,0.00031132,7]
[328416997,1717371051370,-500.0,0.00031132,4]
[328416998,1717371051379,-500.0,0.00031132,4]
[328416999,1717371051389,-500.0,0.00031132,4]
[328417000,1717371051398,-500.0,0.00031132,4]
[328417001,1717371051407,-151.0,0.00031132,7]
[328417002,1717371051417,-152.531254,0.00031132,7]
[328417003,1717371051426,-3510.65,0.00031132,4]
[328417004,1717371051435,-500.0,0.00031132,4]
[328417005,1717371051444,-500.0,0.00031132,4]
[328417006,1717371051453,-500.0,0.00031132,4]
[328417007,1717371051462,-500.0,0.00031132,4]
[328417008,1717371051472,-500.0,0.00031132,4]
[328417009,1717371051481,-500.0,0.00031132,4]
[328417010,1717371051490,-500.0,0.00031132,4]
[328417011,1717371051499,-500.0,0.00031132,4]
[328417012,1717371051508,-500.0,0.00031132,4]
[328417013,1717371051518,-1153.56,0.00031132,4]
[328417014,1717371051526,-1174.470906,0.00031132,7]
[328417015,1717371051535,-151.0,0.00031132,7]
[328417016,1717371051545,-583.54468952,0.00031132,4]
[328417017,1717371051554,-1174.470906,0.00031132,7]
[328417018,1717371051564,-151.0,0.00031132,7]
[328417019,1717371051573,-500.0,0.00031132,4]
[328417020,1717371051582,-500.0,0.00031132,4]
[328417021,1717371051597,-606.11,0.00031132,4]
[328417022,1717371051606,-1174.470906,0.00031132,7]
[328417023,1717371051615,-500.0,0.00031132,4]
[328417024,1717371051624,-1174.470906,0.00031132,7]
[328417025,1717371051635,-500.0,0.00031132,4]
[328417026,1717371051644,-500.0,0.00031132,4]
[328417027,1717371051653,-743.26,0.00031132,4]
[328417028,1717371051662,-500.0,0.00031132,4]
[328417029,1717371051672,-500.0,0.00031132,4]
[328417030,1717371051682,-500.0,0.00031132,4]
[328417031,1717371051691,-500.0,0.00031132,4]
[328417032,1717371051700,-583.48298737,0.00031132,4]
[328417033,1717371051710,-870.16,0.00031132,4]
[328417034,1717371051719,-829.62,0.00031132,4]
[328417035,1717371051728,-500.0,0.00031132,4]
[328417036,1717371051737,-188.38982876,0.00031132,4]
[328417037,1717371051747,-500.0,0.00031132,4]
[328417038,1717371051755,-500.0,0.00031132,4]
[328417039,1717371051765,-514.33972289,0.00031132,4]
[328417040,1717371051774,-1219.6,0.00031132,4]
[328417041,1717371051783,-151.0,0.00031132,7]
[328417042,1717371051792,-500.0,0.00031132,4]
[328417043,1717371051801,-507.9473222,0.00031132,4]
[328417044,1717371051811,-500.0,0.00031132,4]
[328417045,1717371051821,-500.0,0.00031132,4]
[328417046,1717371051830,-500.0,0.00031132,4]
[328417047,1717371051839,-500.0,0.00031132,4]
[328417048,1717371051849,-500.0,0.00031132,4]
[328417049,1717371051858,-500.0,0.00031132,4]
[328417050,1717371051867,-500.0,0.00031132,4]
[328417051,1717371051876,-500.0,0.00031132,4]
[328417052,1717371051886,-500.0,0.00031132,4]
[328417053,1717371051895,-500.0,0.00031132,4]
[328417054,1717371051904,-500.0,0.00031132,4]
[328417055,1717371051914,-336.737914,0.00031132,7]
[328417056,1717371051923,-336.737914,0.00031132,7]
[328417057,1717371051932,-500.0,0.00031132,4]
[328417058,1717371051941,-151.0,0.00031132,7]
[328417059,1717371051950,-500.0,0.00031132,4]
[328417060,1717371051959,-151.0,0.00031132,7]
[328417061,1717371051968,-336.737914,0.00031132,7]
[328417062,1717371051978,-500.0,0.00031132,4]
[328417063,1717371051987,-336.737914,0.00031132,7]
[328417064,1717371051997,-151.0,0.00031132,7]
[328417065,1717371052006,-168.979229,0.00031132,7]
[328417066,1717371052015,-500.0,0.00031132,4]
[328417067,1717371052025,-511.72375892,0.00031132,4]
[328417068,1717371052034,-500.0,0.00031132,4]
[328417069,1717371052043,-509.49206808,0.00031132,4]
[328417070,1717371052052,-513.99,0.00031132,4]
[328417071,1717371052062,-182.20221226,0.00031132,4]
[328417072,1717371052071,-500.0,0.00031132,4]
[328417073,1717371052080,-500.0,0.00031132,4]
[328417074,1717371052089,-151.0,0.00031132,7]
[328417075,1717371052099,-500.0,0.00031132,4]
[328417076,1717371052108,-151.0,0.00031132,7]
[328417077,1717371052117,-500.0,0.00031132,4]
[328417078,1717371052126,-500.0,0.00031132,4]
[328417079,1717371052136,-500.0,0.00031132,4]
[328417080,1717371052145,-500.0,0.00031132,4]
[328417081,1717371052154,-504.35133653,0.00031132,4]
[328417082,1717371052163,-588.98,0.00031132,4]
[328417083,1717371052172,-500.0,0.00031132,4]
[328417084,1717371052181,-500.0,0.00031132,4]
[328417085,1717371052191,-500.0,0.00031132,4]
[328417086,1717371052201,-515.31677079,0.00031132,4]
[328417087,1717371052210,-545.95499972,0.00031132,4]
[328417088,1717371052219,-1934.890911,0.00031132,7]
[328417089,1717371052228,-1934.890911,0.00031132,7]
[328417090,1717371052238,-4160.1495,0.00031133,2]
[328417091,1717371052247,-152.15130497,0.00031161,7]
[328417092,1717371052256,-152.15130497,0.00031165,7]
[328417093,1717371052265,-187.73058253,0.00031175,2]
[328417094,1717371052275,-150.0,0.00031176,2]
[328417095,1717371052284,-166875.0,0.00031178,5]
[328417096,1717371052293,-175.808907,0.00031178,7]
[328417097,1717371052303,-389.242611,0.00031178,7]
[328417098,1717371052312,-389.242611,0.00031178,7]
[328417099,1717371052321,-413.159818,0.00031178,7]
[328417100,1717371052330,-413.159818,0.00031178,7]
[328417101,1717371052339,-151.0,0.00031178,7]
[328417102,1717371052348,-151.0,0.00031178,7]
[328417103,1717371052357,-151.0,0.00031178,7]
[328417104,1717371052367,-151.0,0.00031178,7]
[328417105,1717371052376,-307.794907,0.00031178,7]
[328417106,1717371052386,-307.794907,0.00031178,7]
[328417107,1717371052395,-221.380324,0.00031178,7]
[328417108,1717371052406,-221.380324,0.00031178,7]
[328417109,1717371052415,-152.531254,0.00031178,7]
[328417110,1717371052425,-152.531254,0.00031178,7]
[328417111,1717371052434,-151.0,0.00031178,7]
[328417112,1717371052444,-1174.470906,0.00031178,7]
[328417113,1717371052453,-1174.470906,0.00031178,7]
[328417114,1717371052463,-336.737914,0.00031178,7]
[328417115,1717371052472,-151.0,0.00031178,7]
[328417116,1717371052481,-336.737914,0.00031178,7]
[328417117,1717371052490,-2739.0,0.00031178,5]
[328417118,1717371052499,-1934.890911,0.00031178,7]
[328417119,1717371052508,-1184.24075,0.0003118,2]
[328417120,1717371052517,-3753.36893321,0.00031228,2]
[328417121,1717371052526,-188.32378,0.00031232,7]
[328417122,1717371052535,-188.32378,0.00031232,7]
[328417123,1717371052544,-151.0,0.00031232,7]
[328417124,1717371052554,-151.0,0.00031232,7]
[328417125,1717371052563,-151.0,0.00031232,7]
[328417126,1717371052571,-151.0,0.00031232,7]
[328417127,1717371052581,-1044.317613,0.00031232,7]
[328417128,1717371052595,-1044.317613,0.00031232,7]
[328417129,1717371052604,-10000.0,0.00031233,2]
[328417130,1717371052613,-215.0,0.00031233,2]
[328417131,1717371052622,-1000.0,0.00031233,2]
[328417132,1717371052633,-151.0,0.00031233,7]
[328417133,1717371052642,-369.754307,0.00031233,7]
[328417134,1717371052651,-151.0,0.00031233,7]
[328417135,1717371052660,-369.754307,0.00031233,7]
[328417136,1717371052671,-151.0,0.00031233,7]
[328417137,1717371052681,-151.0,0.00031233,7]
[328417138,1717371052691,-500.0,0.00031237,2]
[328417139,1717371052700,-150.0,0.0003124,2]
[328417140,1717371052710,-507.091,0.0003124,4]
[328417141,1717371052719,-507.091,0.0003124,4]
[328417142,1717371052729,-507.092,0.0003124,4]
[328417143,1717371052740,-507.091,0.0003124,4]
[328417144,1717371052751,-507.092,0.0003124,4]
[328417145,1717371052762,-167.17887737,0.00031252,7]
[328417146,1717371052773,-214.0,0.0003129,2]
[328417147,1717371052784,-150.0,0.00031297,2]
[328417148,1717371052794,-155.0,0.000313,4]
[328417149,1717371052804,-1671.939716,0.000313,11]
[328417150,1717371052815,-1871.52668864,0.00031306,2]
[328417151,1717371052825,-299.27296463,0.00031306,2]
[328417152,1717371052836,-282.51567018,0.00031314,2]
[328417153,1717371052847,-295.77133657,0.00031314,2]
[328417154,1717371052857,-151.0,0.00031314,7]
[328417155,1717371052867,-200.0,0.00031315,2]
[328417156,1717371052876,-155.41641841,0.00031315,2]
[328417157,1717371052886,-1193.61,0.00031315,4]
[328417158,1717371052895,-500.0,0.00031316,4]
[328417159,1717371052905,-500.0,0.00031316,4]
[328417160,1717371052914,-500.0,0.00031316,4]
[328417161,1717371052925,-188.32378,0.00031316,7]
[328417162,1717371052935,-188.32378,0.00031316,7]
[328417163,1717371052944,-500.0,0.00031316,4]
[328417164,1717371052952,-500.0,0.00031316,4]
[328417165,1717371052963,-151.0,0.00031316,7]
[328417166,1717371052972,-617.47,0.00031316,4]
[328417167,1717371052984,-500.0,0.00031316,4]
[328417168,1717371052995,-500.0,0.00031316,4]
[328417169,1717371053005,-705.6,0.00031316,4]
[328417170,1717371053014,-517.48,0.00031316,4]
[328417171,1717371053024,-500.0,0.00031316,4]
[328417172,1717371053033,-607.53,0.00031316,4]
[328417173,1717371053042,-500.0,0.00031316,4]
[328417174,1717371053051,-1255.03,0.00031316,4]
[328417175,1717371053186,-500.0,0.00031316,4]
[328417176,1717371053197,-574.85,0.00031316,4]
[328417177,1717371053206,-510.93995756,0.00031316,4]
[328417178,1717371053215,-500.0,0.00031316,4]
[328417179,1717371053224,-334.800936,0.00031316,7]
[328417180,1717371053233,-500.0,0.00031316,4]
[328417181,1717371053242,-334.800936,0.00031316,7]
[328417182,1717371053251,-500.0,0.00031316,4]
[328417183,1717371053260,-500.0,0.00031316,4]
[328417184,1717371053269,-500.0,0.00031316,4]
[328417185,1717371053279,-164.68297176,0.00031316,4]
[328417186,1717371053288,-500.0,0.00031316,4]
[328417187,1717371053297,-500.0,0.00031316,4]
[328417188,1717371053307,-223.100549,0.00031316,7]
[328417189,1717371053316,-500.0,0.00031316,4]
[328417190,1717371053325,-151.0,0.00031316,7]
[328417191,1717371053335,-570.33,0.00031316,4]
[328417192,1717371053344,-500.0,0.00031316,4]
[328417193,1717371053354,-532.90779475,0.00031316,4]
[328417194,1717371053364,-530.82664513,0.00031316,4]
[328417195,1717371053374,-223.352464,0.00031316,7]
[328417196,1717371053383,-551.69,0.00031316,4]
[328417197,1717371053392,-223.352464,0.00031316,7]
[328417198,1717371053402,-661.77,0.00031316,4]
[328417199,1717371053411,-500.0,0.00031316,4]
[328417200,1717371053420,-936.31,0.00031316,4]
[328417201,1717371053430,-151.0,0.00031316,7]
[328417202,1717371053439,-522.4,0.00031316,4]
[328417203,1717371053447,-500.0,0.00031316,4]
[328417204,1717371053457,-500.0,0.00031316,4]
[328417205,1717371053466,-500.0,0.00031316,4]
[328417206,1717371053475,-507.875795,0.00031316,7]
[328417207,1717371053485,-500.0,0.00031316,4]
[328417208,1717371053494,-1102.97,0.00031316,4]
[328417209,1717371053503,-507.875795,0.00031316,7]
[328417210,1717371053514,-523.28497019,0.00031316,4]
[328417211,1717371053523,-831.18,0.00031316,4]